Cogmind - Beta 14 @@@ ROGUE MODE // 2024.09.07 @ 22:24:17 Player: CatgirlLyra Result: Destroyed by Alpha 7 with Heavy Quantum Rifle Performance ------------- Evolutions (8) 4000 Regions Visited (21) 4200 Robots Destroyed (387) 1935 Value Destroyed (22400) 22400 Prototype IDs (48) 960 Alien Tech Used (8) 1600 Bonus (13581) 13581 TOTAL SCORE: 48676 Bonus ------- High Alert Combat Kills 3805 Follower Combat Kills 1728 Entered Garrisons 1400 Used RIF Installer 3500 Used Core Reset Matrix 3000 Scanned by Researcher 500 Friendly Fire -352 Cogmind --------- Core Integrity 0/1450 Matter 200/300 Energy 160/590 System Corruption 3% Temperature Cool (9) Movement Immobile (Siege) Location -2/Section 7 Parts ------- > --- POWER (3) -------- Heavy Antimatter Reactor Reinforced Quantum Reactor > --- PROPULSION (6) --- Centrium Heavy Treads Advanced Heavy Siege Treads Advanced Heavy Siege Treads > --- UTILITY (11) ----- Experimental Power Amplifier Advanced Heat Sink Advanced Heat Sink Advanced Heat Sink Experimental Heat Sink Advanced Cooling System (fused) Huge Storage Unit System Mapper Ghost Barrier > --- WEAPON (3) ------- Improved Potential Cannon Ragnarok Missile Launcher > --- INVENTORY (25) --- Particle Reactor Medium Treads Improved Heavy Treads Armored Heavy Treads Biometal Heavy Treads Biometal Heavy Treads Matter Compressor (107) Antimissile System Long-range Tractor Beam Microwarp Drive Advanced Remote Datajack Advanced Remote Datajack Improved Plasma Cutter Peak State ------------ > --- POWER ------------ Heavy Antimatter Reactor Heavy Antimatter Reactor Reinforced Quantum Reactor > --- PROPULSION ------- Centrium Heavy Treads Advanced Heavy Siege Treads Advanced Heavy Siege Treads > --- UTILITY ---------- Experimental Power Amplifier Experimental Heat Sink Advanced Cooling System Huge Storage Unit Advanced Phase Shifter Phase Armor Experimental Hardlight Generator Phase Redirector System Mapper Ghost Barrier > --- WEAPON ----------- Heavy Quantum Rifle Helical Railgun Hypervelocity Multirail > --- INVENTORY -------- Reinforced Quantum Reactor Improved Heavy Treads Armored Heavy Treads Biometal Heavy Treads Matter Compressor Antimissile System Relay Coupler [Grunt] Relay Coupler [Sentry] Relay Coupler [Specialist] Relay Coupler [Heavy] Long-range Tractor Beam High-powered Transdimensional Reconstructor Enhanced Nova Cannon Improved Potential Cannon Smartbomb Launcher Advanced Remote Datajack Advanced Remote Datajack Improved Plasma Cutter Sigix Broadsword [Rating: 236] Favorites ----------- Power Heavy Antimatter Reactor Engine Improved Deuterium Engine Power Core Light Nuclear Core Reactor Heavy Antimatter Reactor Propulsion Light Treads Treads Light Treads Leg Flexi-carbon Leg Wheel Armored Huge Wheel Utility Huge Storage Unit Device Advanced Heat Sink Storage Huge Storage Unit Processor Improved Targeting Computer Hackware Relay Coupler [Grunt] Protection Medium Reactive Plating Artifact Phase Armor Weapon Gauss Rifle Energy Gun Quantum Rifle Energy Cannon Advanced Beam Cannon Ballistic Gun Gauss Rifle Ballistic Cannon Heavy Gauss Cannon Launcher Ragnarok Missile Launcher Special Weapon Advanced Remote Datajack Impact Weapon Great Maul Slashing Weapon Plasma Sword Build | -11 -10 -10 -9 -8 -8 -7 -7 -7 -7 -6 -6 -5 -5 -4 -4 -3 -3 -3 -2 -2 -2 ------- Run | Yrd Mat Min Mat Mat Gar Fac Gar Fac Gar Fac Gar Fac Gar Fac Gar Res Tes Gar Res Qua Sec Slots Evolved 16 | . . . 2 2 . 2 . . . 2 . 2 . 2 . 2 . . 2 . . Power 2 | . . . . . . . . . . 1 . . . . . . . . 1 . . Propulsion 4 | . . . 1 . . 1 . . . . . . . 2 . . . . . . . Utility 9 | . . . 1 1 . 1 . . . 1 . 2 . . . 2 . . 1 . . Weapon 1 | . . . . 1 . . . . . . . . . . . . . . . . . Parts Attached 555 | 9 10 . 25 21 38 11 23 6 17 15 32 19 36 6 37 10 92 36 6 72 34 Power 38 | 1 2 . 2 1 6 . 2 . 2 1 3 1 5 . 3 2 2 1 1 2 1 Engine 19 | 1 2 . 2 1 4 . 2 . . 1 2 1 2 . 1 . . . . . . Core 4 | . . . . . 2 . . . 1 . 1 . . . . . . . . . . Reactor 15 | . . . . . . . . . 1 . . . 3 . 2 2 2 1 1 2 1 Propulsion 59 | 2 2 . 8 5 4 1 9 . 4 1 5 . 1 1 1 . 6 2 . 7 . Treads 52 | 2 2 . 8 3 3 1 8 . 4 1 4 . 1 1 1 . 6 2 . 5 . Leg 1 | . . . . . . . . . . . 1 . . . . . . . . . . Wheel 6 | . . . . 2 1 . 1 . . . . . . . . . . . . 2 . Hover . | . . . . . . . . . . . . . . . . . . . . . . Flight . | . . . . . . . . . . . . . . . . . . . . . . Utility 211 | 3 2 . 8 6 10 6 8 6 9 5 8 11 13 5 18 4 32 15 2 26 14 Device 100 | 2 . . 3 1 4 2 2 5 6 2 2 3 3 2 7 2 20 7 1 21 5 Storage 7 | 1 1 . 1 . . 1 . . . . . . 1 . . . 2 . . . . Processor 7 | . . . . . . . . 1 . . . . . . 1 . 2 . . 1 2 Hackware 40 | . . . . 1 1 2 1 . . 1 4 5 5 2 2 2 4 6 1 . 3 Protection 50 | . 1 . 4 4 5 1 5 . 3 2 2 3 4 1 8 . 4 2 . 1 . Artifact 7 | . . . . . . . . . . . . . . . . . . . . 3 4 Weapon 247 | 3 4 . 7 9 18 4 4 . 2 8 16 7 17 . 15 4 52 18 3 37 19 Energy Gun 62 | 2 . . 4 3 5 2 1 . 1 3 8 3 6 . 5 . 10 5 . 3 1 Energy Cannon 31 | . . . 1 1 1 1 . . . 1 . . . . . 1 18 . . 4 3 Ballistic Gun 72 | 1 4 . 2 3 7 . 1 . 1 1 3 . 3 . 5 1 9 6 1 17 7 Ballistic Cannon 4 | . . . . . 2 . 2 . . . . . . . . . . . . . . Launcher 11 | . . . . 2 1 1 . . . . 1 . . . . . 2 1 . 1 2 Special Weapon 60 | . . . . . 1 . . . . 3 4 2 7 . 5 2 13 6 2 11 4 Impact Weapon 1 | . . . . . 1 . . . . . . . . . . . . . . . . Slashing Weapon 6 | . . . . . . . . . . . . 2 1 . . . . . . 1 2 Piercing Weapon . | . . . . . . . . . . . . . . . . . . . . . . Special Melee Weapon . | . . . . . . . . . . . . . . . . . . . . . . Unidentified Prototypes 42 | . . . 3 2 . 1 . . . . . 3 . . . . 20 . . 10 3 Corrupted Parts 5 | . . . . . 4 . . . . . . . . . 1 . . . . . . System Corruption 48 | . . . . . 36 . . . . . . . . . 12 . . . . . . Parts Lost 62 | . 3 . 2 . 7 . 12 . 8 2 11 . 1 1 1 . 2 3 . 2 7 Power 6 | . . . . . 1 . 1 . 1 . 2 . . . . . . . . . 1 Propulsion 15 | . 1 . . . 1 . 5 . 3 1 4 . . . . . . . . . . Utility 27 | . 1 . 2 . 3 . 3 . 3 1 2 . 1 1 1 . 2 3 . 1 3 Weapon 14 | . 1 . . . 2 . 3 . 1 . 3 . . . . . . . . 1 3 Highest Loss Streak 8 | . 2 . 1 . 4 . 8 . 6 1 3 . 1 1 1 . 2 1 . 1 3 To Critical Strikes . | . . . . . . . . . . . . . . . . . . . . . . Average Slot Usage (%) 90 | . 99 100 99 92 88 91 96 99 99 99 92 93 87 77 82 83 85 85 85 81 77 Engine 5 | . 14 14 10 9 4 7 6 7 . 6 10 11 8 5 5 . . . . . . Reactor 4 | . . . . . . . . . 4 6 . . 2 5 5 8 8 9 13 13 12 Treads 19 | . 27 28 32 13 12 30 29 30 29 25 16 17 13 15 15 14 16 14 13 12 13 Device 16 | . 13 . 11 9 11 14 14 22 18 20 16 16 11 6 17 20 22 20 16 20 21 Storage 6 | . 14 14 10 9 9 7 7 7 7 6 6 5 5 5 5 4 4 4 4 4 4 Hackware 7 | . . . . 4 2 . . . . 5 9 17 15 18 7 11 10 14 17 11 10 Protection 7 | . . 14 11 12 12 7 11 7 11 6 6 4 8 5 9 9 7 7 8 . . Energy Gun 6 | . 1 . 6 9 13 6 6 7 6 2 6 7 8 5 4 . 3 6 4 3 2 Energy Cannon 1 | . . . . 9 1 . . . . . . . . . . 3 3 . . . 2 Ballistic Gun 8 | . 26 28 14 8 9 15 9 . 3 5 9 6 4 5 9 5 1 6 5 4 1 Ballistic Cannon 1 | . . . . . . . 5 15 10 6 2 . . . . . . . . . . Special Weapon 1 | . . . . . . . . . . 3 . 1 1 5 . 3 3 . 2 2 1 Peak Build Rating 236 | 7 11 11 24 38 56 66 66 61 70 82 90 87 107 117 126 136 185 202 209 236 235 Average Rating 100 | 5 9 11 19 33 40 63 57 60 68 77 80 82 96 114 122 132 156 192 204 221 213 On Entrance 87 | . 7 11 11 24 36 54 66 61 61 69 78 73 82 105 113 125 135 180 199 203 227 Naked Turns . | . . . . . . . . . . . . . . . . . . . . . . Heaviest Build 247 | 14 52 52 61 84 112 131 146 138 152 160 141 144 157 165 180 183 193 178 193 247 242 Greatest Support 240 | 40 40 40 63 63 83 110 110 90 103 97 117 110 145 220 220 220 225 235 235 240 240 Greatest Overweight (x) 11 | 1 1 1 1 2 3 1 1 1 1 1 1 1 2 . . . 1 . . 11 1 Average Overweight (x) . | . . 1 . 1 2 . 1 1 1 1 1 1 . . . . . . . . . Largest Inventory Capacity 25 | 8 20 20 20 20 20 25 25 25 25 25 25 25 25 25 25 25 25 25 25 25 25 Average Capacity 23 | 7 18 20 19 20 20 21 25 25 25 25 25 25 25 25 25 25 25 25 25 25 25 Most Carried 25 | 7 20 20 20 20 20 25 25 25 25 25 25 25 25 24 25 25 25 25 25 25 25 Average Carried 22 | 4 16 20 19 19 19 20 23 25 24 23 24 23 24 22 24 23 23 24 24 24 23 Final Capacity 25 | 8 20 20 20 20 20 25 25 25 25 25 25 25 25 25 25 25 25 25 25 25 25 Final Carried 25 | 7 20 20 20 20 20 25 25 25 25 25 25 23 25 22 25 25 23 25 25 24 18 Class Distribution -------------------- 29% | Bothacker-Tank 18% | Scavenger-Tank 17% | Botlord-Tank 12% | Mutant 10% | Tank 7% | Hacker-Tank Dominant Class ---------------- Mutant | -10/Materials Mutant | -10/Mines Mutant | -9/Materials Tank | -8/Materials Tank | -8/Garrison Scavenger-Tank | -7/Factory Scavenger-Tank | -7/Garrison Scavenger-Tank | -7/Factory Scavenger-Tank | -7/Garrison Bothacker-Tank | -6/Factory Bothacker-Tank | -6/Garrison Botlord-Tank | -5/Factory Bothacker-Tank | -5/Garrison Bothacker-Tank | -4/Factory Bothacker-Tank | -4/Garrison Botlord-Tank | -3/Research Bothacker-Tank | -3/Testing Hacker-Tank | -3/Garrison Botlord-Tank | -2/Research Bothacker-Tank | -2/Quarantine Hacker-Tank | -2/Section 7 Resources | -11 -10 -10 -9 -8 -8 -7 -7 -7 -7 -6 -6 -5 -5 -4 -4 -3 -3 -3 -2 -2 -2 ----------- Run | Yrd Mat Min Mat Mat Gar Fac Gar Fac Gar Fac Gar Fac Gar Fac Gar Res Tes Gar Res Qua Sec Matter Collected 14656 | 307 545 24 581 392 545 413 979 146 968 252 855 230 848 . 1095 125 1970 1328 129 1995 929 Remotely 280 | 66 . . . . . . . . . . . . . . . . . . . 214 . Salvage Created 19220 | 141 847 36 1058 1063 1177 940 1103 140 939 392 792 147 1788 . 888 93 1240 1852 183 2893 1508 Parts 871 | 8 58 5 62 52 74 46 47 9 40 16 41 3 42 . 37 4 74 71 7 122 53 Haulers Intercepted 9 | . 2 . 3 2 . 1 . . . . . 1 . . . . . . . . . Recyclers Shooed 6 | . . 1 1 1 . . . 1 . . . . . . . . . . . 2 . Parts Field Recycled 4 | . . . . . . . . . . . . . . . . . 4 . . . . Retrieved Matter 101 | . . . . . . . . . . . . . . . . . 101 . . . . Parts Self-Destructed . | . . . . . . . . . . . . . . . . . . . . . . Prevented . | . . . . . . . . . . . . . . . . . . . . . . Kills | -11 -10 -10 -9 -8 -8 -7 -7 -7 -7 -6 -6 -5 -5 -4 -4 -3 -3 -3 -2 -2 -2 ------- Run | Yrd Mat Min Mat Mat Gar Fac Gar Fac Gar Fac Gar Fac Gar Fac Gar Res Tes Gar Res Qua Sec Combat Hostiles Destroyed 318 | . 17 2 22 19 34 14 24 1 28 6 20 1 11 . 12 3 19 26 2 33 24 Melee 9 | . . . . . . . . . . . . . 1 . . 1 . . . . 7 Guns 216 | . 17 2 20 4 27 10 18 . 7 6 14 1 10 . 12 1 16 22 2 24 3 Cannons 57 | . . . 2 7 2 . 6 . 21 . 3 . . . . 1 2 . . 7 6 AOE 28 | . . . . 7 3 4 . 1 . . 3 . . . . . . 3 . . 7 Classes Destroyed 19 | 2 6 . 2 2 1 2 . . . . . . . . . . 2 . . 1 1 Worker 17 | . 3 1 2 2 . 2 . 1 . 1 . . . . . . 3 . . . 2 Builder 6 | . 2 . 1 . . 1 . . . . . . . . . . . . . 1 1 Tunneler 4 | 4 . . . . . . . . . . . . . . . . . . . . . Hauler 9 | . 2 . 3 2 . 1 . . . . . 1 . . . . . . . . . Recycler 10 | 1 1 . 2 2 . 1 . 1 . . . . . . . . . . . 1 1 Operator 7 | . . . 2 . . . . 2 . . . . . . . . . . . 2 1 Watcher 12 | . 1 . . 1 1 3 . 1 . 1 1 . . . . . . . . 1 2 Swarmer 80 | . 5 2 9 7 16 4 7 . 2 . 10 . . . . 3 . 3 . 5 7 Grunt 108 | . 12 . 7 4 11 6 9 . 16 5 6 1 7 . 3 . 1 5 . 7 8 Brawler 6 | . . . . . . 1 . . 2 . . . . . . . . 3 . . . Duelist 4 | . . . . 1 1 . . . 1 1 . . . . . . . . . . . Researcher 3 | . . . . . . . . . . . . . . . . . . . . . 3 Sentry 39 | . . . 6 4 3 2 5 1 2 . 3 . 1 . 4 . . 6 . . 2 Hunter 40 | . . . . 3 2 . 3 . 2 . 1 . . . . . 7 4 2 11 5 Programmer 32 | . . . . . . 1 . . 3 . . . 1 . 4 . 8 5 . 9 1 Behemoth 5 | . . . . . 1 . 1 . . . . . 2 . 1 . . . . . . Striker 2 | . . . . . . . . . . . . . . . . . 2 . . . . Alpha 7 2 | . . . . . . . . . . . . . . . . . 1 . . . 1 Fortress 1 | . . . . . . . . . . . . . . . . . . . . 1 . Best Kill Streak 13 | 4 3 2 6 8 6 5 4 2 12 4 6 1 2 . 2 2 5 5 2 6 13 Combat Bots Only 12 | . 3 2 4 7 6 5 4 1 12 3 6 1 2 . 2 2 4 5 2 5 9 Max Kills in Single Turn 5 | 1 2 1 1 5 2 2 2 1 2 1 1 1 1 . 1 1 2 3 1 1 3 Gunslinging 1 | . 1 . . . 1 . 1 . . . . . . . . . . 1 . . . Exploded 4 | . . . . 4 2 2 . 1 . . 1 . . . . . . 3 . . 1 Melee 1 | . . . . . . . . . . . . . 1 . . 1 . . . . 1 Uniques/NPCs Destroyed . | . . . . . . . . . . . . . . . . . . . . . . Combat | -11 -10 -10 -9 -8 -8 -7 -7 -7 -7 -6 -6 -5 -5 -4 -4 -3 -3 -3 -2 -2 -2 -------- Run | Yrd Mat Min Mat Mat Gar Fac Gar Fac Gar Fac Gar Fac Gar Fac Gar Res Tes Gar Res Qua Sec Hostile Shots Fired 2884 | . 128 14 118 88 210 119 313 . 307 62 199 6 69 . 206 13 234 264 10 308 216 Missed 960 | . 39 3 19 24 48 46 87 . 125 17 56 4 22 . 69 . 87 109 2 133 70 Damage Taken 26709 | . 1031 85 1169 775 2133 542 3096 22 1643 521 1808 25 1165 207 1562 104 2005 1667 112 3312 3725 Core 2859 | . 186 16 108 88 182 51 184 . 141 19 129 . 74 45 59 . 70 120 15 776 596 Absorbed by Shields 5320 | . . . . . 24 225 174 23 146 73 89 . 173 . 981 109 550 1283 80 1390 . Reduced by Siege Mode 614 | . . . . . . . . . . . . . . . 43 . . 2 . 377 192 Redirected to Core 1031 | . . . . . . . . . . . . . . . . . . . . 651 380 Ignored by Resistances 2241 | . . . . 179 396 . 374 . 153 12 136 11 6 . 349 88 537 . . . . Regen/Repaired (Parts) 2173 | . 129 . 133 137 . 29 . . . . . 91 559 . . . 384 . 61 480 170 Core Remaining (%) 70 | 100 . 19 73 . 50 . . . 46 . 82 . 92 . 90 . . 85 . . . Volleys Fired 1240 | 9 76 4 82 56 75 49 74 7 53 28 63 16 87 23 77 20 133 81 9 145 73 Largest 3 | 2 2 2 2 3 3 3 3 3 3 3 3 3 3 1 3 3 3 3 3 3 3 Hottest 276 | 60 40 40 124 147 177 142 198 198 212 188 197 150 187 94 160 179 276 183 168 238 270 Shots Fired 2743 | 18 152 8 164 154 210 128 196 21 161 55 144 29 186 22 201 26 202 188 17 337 124 Gun 2148 | 18 152 8 161 107 188 123 165 7 67 27 110 22 156 9 194 6 95 178 12 281 62 Cannon 371 | . . . 3 45 19 . 31 14 94 15 15 . . . . 4 51 . . 40 40 Launcher 25 | . . . . 2 3 5 . . . . 6 . . . . . . 1 . . 8 Special 199 | . . . . . . . . . . 13 13 7 30 13 7 16 56 9 5 16 14 Kinetic 1389 | 9 152 8 116 54 73 86 133 14 108 30 79 18 62 . 125 6 37 77 8 160 34 Thermal 1130 | 9 . . 48 98 134 37 63 7 53 12 46 4 94 9 69 4 109 101 4 161 68 Explosive 9 | . . . . . . . . . . . . . . . . . . 1 . . 8 Electromagnetic 16 | . . . . 2 3 5 . . . . 6 . . . . . . . . . . Robot Hit Streak 68 | 4 11 2 23 14 20 18 18 4 10 12 17 9 65 8 20 10 12 15 8 68 8 Robot Miss Streak 7 | 1 5 2 4 6 3 5 4 3 6 3 3 2 3 1 4 3 3 4 3 7 3 Penetration Max 1 | . . . . . . 1 1 . 1 1 1 . . . . . 1 1 . 1 1 Secondary Targets 44 | . 3 . 4 . 7 1 10 . . . 1 . 2 . 2 . 1 8 . 5 . Max Gunslinging Chain 2 | . 1 . 1 . 1 1 2 . . . 1 . 1 . 1 . 1 1 . 1 . Shots Hit Robots 1759 | 11 94 3 108 90 117 82 132 14 88 30 79 22 159 12 124 17 128 116 10 232 91 Core Hits 711 | 6 42 2 43 44 53 33 54 8 42 15 34 4 45 . 41 4 39 47 5 106 44 Critical Kills 50 | . 2 . . 1 . . 2 . . . 1 . . . 1 . 9 10 2 21 1 Critical Parts Destroyed 67 | . 1 . . . 1 2 4 . . . . . 1 . 3 . 18 8 3 26 . Critical Strikes 158 | . 3 . 4 2 7 3 9 2 7 . 3 . 3 . 4 . 27 19 5 57 3 Burn 13 | . . . 4 1 6 1 . . . . . . . . . . . 1 . . . Meltdown 5 | . . . . 1 . . . . . . . . . . . . 1 . . 2 1 Destroy 122 | . 3 . . . . 2 7 . . . 1 . 1 . 4 . 26 18 5 55 . Blast 13 | . . . . . . . 2 2 7 . 2 . . . . . . . . . . Smash 1 | . . . . . 1 . . . . . . . . . . . . . . . . Sever 4 | . . . . . . . . . . . . . 2 . . . . . . . 2 Melee Attacks 50 | . . . . . 5 . . . . . . . 21 . . . . . . . 24 Impact 5 | . . . . . 5 . . . . . . . . . . . . . . . . Slashing 45 | . . . . . . . . . . . . . 21 . . . . . . . 24 Piercing . | . . . . . . . . . . . . . . . . . . . . . . Sneak Attacks 2 | . . . . . . . . . . . . . . . . . . . . . 2 Combat Hostiles . | . . . . . . . . . . . . . . . . . . . . . . Follow-up Attacks . | . . . . . . . . . . . . . . . . . . . . . . Damage Inflicted 48098 | 135 1346 45 1737 1946 2575 2223 3555 573 3535 697 1730 350 4917 . 3264 125 2508 4041 54 5682 7060 Guns 31207 | 135 1331 37 1672 1095 1907 1952 2961 100 1130 447 1373 350 3040 . 3264 25 1472 3205 54 4575 1082 Cannons 8173 | . . . 43 515 215 . 594 334 2405 227 185 . . . . 37 832 . . 1067 1719 Explosions 4717 | . . . . 330 260 270 . 139 . . 172 . . . . . 43 836 . . 2667 Melee 3628 | . . . . . 193 . . . . . . . 1865 . . . . . . . 1570 Ramming 373 | . 15 8 22 6 . 1 . . . 23 . . 12 . . 63 161 . . 40 22 Kinetic 19891 | 76 1331 37 1159 525 655 1399 2470 334 2688 472 897 235 925 . 1901 25 485 1107 54 2559 557 Thermal 21144 | 59 . . 556 1147 1537 642 1085 239 847 202 661 115 2115 . 1363 37 1819 2098 . 3083 3539 Explosive 2208 | . . . . . . . . . . . . . . . . . . 836 . . 1372 Electromagnetic 854 | . . . . 268 190 181 . . . . 172 . . . . . 43 . . . . Impact 193 | . . . . . 193 . . . . . . . . . . . . . . . . Slashing 3435 | . . . . . . . . . . . . . 1865 . . . . . . . 1570 Piercing . | . . . . . . . . . . . . . . . . . . . . . . Highest Corruption 36 | . . . 3 . 36 3 3 3 6 . 2 . . 5 22 . 15 21 . 10 7 Average Corruption 7 | . . . 2 . 30 2 3 3 3 . 1 . . 5 17 . 9 16 . 4 5 Corruption Purged 6 | . . . . . . . . . . . . . . . . . . . . 6 . Corruption Blocked . | . . . . . . . . . . . . . . . . . . . . . . Effects 354 | . . . 10 . 20 1 36 16 20 . 19 . . 3 51 . 69 43 . 49 17 Message Errors 77 | . . . 3 . 2 . 7 4 9 . 3 . . . 13 . 17 3 . 12 4 Matter Fused 70 | . . . 1 . 4 . 12 2 1 . 5 . . 1 14 . 14 5 . 7 4 Heat Flow Errors 41 | . . . 2 . 5 . 2 3 2 . 2 . . . 5 . 10 4 . 5 1 Energy Discharges 40 | . . . 1 . 2 . 4 1 2 . 5 . . . 5 . 8 6 . 5 1 Parts Rejected 4 | . . . . . . . . . . . . . . . 1 . . . . 2 1 Parts Fused 4 | . . . . . . . . . 1 . . . . . 1 . . 1 . . 1 Data Loss (minor) 46 | . . . . . 5 1 8 4 2 . 2 . . 1 2 . 7 7 . 4 3 Data Loss (major) 22 | . . . 3 . . . 1 2 1 . 1 . . . 4 . 3 4 . 2 1 Misfires 18 | . . . . . 1 . . . 2 . . . . . 3 . 3 6 . 3 . Alerts 9 | . . . . . 1 . 1 . . . . . . . . . 3 1 . 2 1 Misdirections 1 | . . . . . . . . . . . . . . . . . 1 . . . . Weapon Failures 22 | . . . . . . . 1 . . . 1 . . 1 3 . 3 6 . 7 . Overload Shots 1 | . . . . . . . . . . . . . . . . . 1 . . . . Overflow Damage 1364 | . . . . 5 100 2 21 28 49 . 6 . 61 . . . 41 162 . 105 784 Projectiles 457 | . . . . . 1 . 21 28 49 . 5 . . . . . . . . 105 248 Explosions 472 | . . . . 5 24 2 . . . . 1 . . . . . 3 162 . . 275 Melee 435 | . . . . . 75 . . . . . . . 61 . . . 38 . . . 261 Knockbacks 25 | . . . . . . . 1 3 16 3 1 . . . . . 1 . . . . Impact 1 | . . . . . . . . . . . . . . . . . 1 . . . . Kinetic 22 | . . . . . . . 1 3 14 3 1 . . . . . . . . . . Secondary 2 | . . . . . . . . . 2 . . . . . . . . . . . . Self-Inflicted Damage 228 | . . . . . 13 . . 45 . . 47 . . . . . . . . . 123 Shots 7 | . . . . . 1 . . 1 . . 3 . . . . . . . . . 2 Rammed 26 | . 2 1 2 1 . 1 . . . 3 . . . . . 4 9 . . 2 1 Targets Rammed 31 | . 2 2 4 1 . 1 . . . 3 . . 1 . . 4 9 . . 2 2 Kicked . | . . . . . . . . . . . . . . . . . . . . . . Crushed 5 | . . 1 2 . . . . . . . . . 1 . . . . . . . 1 Highest Temperature 474 | . 8 . 140 324 381 216 474 157 313 199 324 80 443 116 197 42 199 198 117 378 157 Average Temperature 84 | . 2 . 44 113 122 52 59 64 90 121 96 42 111 51 74 18 41 50 54 116 54 Received Heat Transfer 5859 | . 498 . 468 207 971 154 952 . 484 211 378 . 726 . 211 4 21 141 . 127 306 Effects 5 | . . . . . 2 . 1 . . . . . . . . . . . . 2 . Shutdowns 2 | . . . . . . . 1 . . . . . . . . . . . . 1 . Energy Bleed 1 | . . . . . 1 . . . . . . . . . . . . . . . . Interference 1 | . . . . . . . . . . . . . . . . . . . . 1 . Short Circuit 1 | . . . . . 1 . . . . . . . . . . . . . . . . Siege Activations 13 | . . . . . . . . . . . . . . . 1 . . 2 . 6 4 Total Turns 264 | . . . . . . . . . . . . . . . 25 . . 16 . 194 29 Longest Duration 83 | . . . . . . . . . . . . . . . 25 . . 13 . 83 14 Robots Corrupted 1 | . . . . . 1 . . . . . . . . . . . . . . . . Combat Hostiles 1 | . . . . . 1 . . . . . . . . . . . . . . . . Parts Fried 1 | . . . . . . . . . . . . . . . . . 1 . . . . Impact Corruptions 4 | . . . . . 2 . . . . . . . . . . . 2 . . . . Robots Melted 7 | . . . . 1 1 . . . . . . . . . . . 1 1 . 2 1 Combat Hostiles 7 | . . . . 1 1 . . . . . . . . . . . 1 1 . 2 1 Parts Melted 44 | . . . 2 7 9 . . . . . . . 2 . 5 . 4 9 . 5 1 Heat Transferred 27376 | 125 . . 1480 2470 3541 938 1746 325 1033 259 925 148 2553 . 1665 37 2183 2026 . 3206 2716 Parts Sabotaged . | . . . . . . . . . . . . . . . . . . . . . . Parts Stolen . | . . . . . . . . . . . . . . . . . . . . . . Parts Stripped . | . . . . . . . . . . . . . . . . . . . . . . Power Chain Reactions 7 | . . . . 3 1 2 . . . . 1 . . . . . . . . . . Alert | -11 -10 -10 -9 -8 -8 -7 -7 -7 -7 -6 -6 -5 -5 -4 -4 -3 -3 -3 -2 -2 -2 ------- Run | Yrd Mat Min Mat Mat Gar Fac Gar Fac Gar Fac Gar Fac Gar Fac Gar Res Tes Gar Res Qua Sec Peak Influence 1404 | 25 296 130 232 253 1352 1022 1404 919 1251 837 1391 762 1120 588 914 608 387 820 461 399 1209 Initial 737 | . 16 85 50 59 128 709 671 737 522 656 445 730 476 588 321 513 342 112 461 195 72 Average 535 | 11 147 110 90 123 862 877 1069 767 929 755 857 683 754 501 638 582 124 406 334 155 421 Maximum Alert Level 4 | . 1 . 1 1 4 3 4 3 4 3 4 3 4 2 3 2 1 3 2 1 4 Low Security (%) 32 | 100 73 100 96 90 3 . . . . . . . . . . . 83 22 . 74 33 Level 1 10 | . 26 . 3 9 7 . . . . . . . . . 8 . 16 35 94 25 20 Level 2 17 | . . . . . 25 . 2 . 25 26 33 38 21 100 46 100 . 30 5 . 31 Level 3 31 | . . . . . 26 100 56 100 53 73 49 61 78 . 44 . . 10 . . 5 Level 4 8 | . . . . . 37 . 40 . 20 . 17 . . . . . . . . . 8 Level 5 . | . . . . . . . . . . . . . . . . . . . . . . High Security . | . . . . . . . . . . . . . . . . . . . . . . Max Security . | . . . . . . . . . . . . . . . . . . . . . . Squads Dispatched 49 | . 5 . 1 4 . 5 . . . 1 . 2 . . . 1 9 . . 8 13 Investigation 7 | . 2 . 1 2 . . . . . . . . . . . . 1 . . . 1 Extermination 12 | . . . . . . 1 . . . 1 . . . . . 1 4 . . 4 1 Reinforcement 27 | . 3 . . 1 . 2 . . . . . 2 . . . . 4 . . 4 11 Assault 1 | . . . . . . 1 . . . . . . . . . . . . . . . Garrison 2 | . . . . 1 . 1 . . . . . . . . . . . . . . . Intercept . | . . . . . . . . . . . . . . . . . . . . . . Searches Triggered . | . . . . . . . . . . . . . . . . . . . . . . Construction Impeded 3 | . . . . 1 . . . . . . . . . . . . . . . . 2 Haulers Reinforced 5 | . . . . . . 1 . . . . . 1 . . . . 2 . . . 1 Active Scanning Responses . | . . . . . . . . . . . . . . . . . . . . . . Cargo Convoy Interrupts . | . . . . . . . . . . . . . . . . . . . . . . Stealth | -11 -10 -10 -9 -8 -8 -7 -7 -7 -7 -6 -6 -5 -5 -4 -4 -3 -3 -3 -2 -2 -2 --------- Run | Yrd Mat Min Mat Mat Gar Fac Gar Fac Gar Fac Gar Fac Gar Fac Gar Res Tes Gar Res Qua Sec Distress Signals 12 | . 2 . 1 3 . . . . . . . . . . . . 1 1 . . 4 Communications Jammed 23 | . . . . . . . . . . 1 1 2 . . . . 10 . . 9 . Distress Signals 21 | . . . . . . . . . . 1 1 . . . . . 10 . . 9 . Times Spotted 539 | . 30 6 38 29 35 23 41 4 29 12 29 7 31 2 25 6 42 38 7 48 57 Peak Tracking Total 13 | . 5 3 6 10 6 5 13 1 8 3 5 1 4 1 5 4 5 7 4 6 6 Tactical Retreats 47 | . 2 . 3 3 3 6 5 . 2 . 1 . 2 . . 1 11 2 . . 6 Traps | -11 -10 -10 -9 -8 -8 -7 -7 -7 -7 -6 -6 -5 -5 -4 -4 -3 -3 -3 -2 -2 -2 ------- Run | Yrd Mat Min Mat Mat Gar Fac Gar Fac Gar Fac Gar Fac Gar Fac Gar Res Tes Gar Res Qua Sec Traps Triggered 59 | . 1 . 3 1 12 . 12 . 8 . 12 . 5 . 2 . . 1 . 2 . Indirectly 2 | . . . . . . . . . . . 2 . . . . . . . . . . Trap Hack Attempts . | . . . . . . . . . . . . . . . . . . . . . . Triggered . | . . . . . . . . . . . . . . . . . . . . . . Disarmed . | . . . . . . . . . . . . . . . . . . . . . . Reprogrammed . | . . . . . . . . . . . . . . . . . . . . . . Reused . | . . . . . . . . . . . . . . . . . . . . . . Traps Extracted . | . . . . . . . . . . . . . . . . . . . . . . Installed . | . . . . . . . . . . . . . . . . . . . . . . Triggered 1 | . . . . . . . . . . . . . . . . . 1 . . . . Machines | -11 -10 -10 -9 -8 -8 -7 -7 -7 -7 -6 -6 -5 -5 -4 -4 -3 -3 -3 -2 -2 -2 ---------- Run | Yrd Mat Min Mat Mat Gar Fac Gar Fac Gar Fac Gar Fac Gar Fac Gar Res Tes Gar Res Qua Sec Machines Disabled 79 | . . . . 2 9 4 . 3 1 3 4 . 3 . 5 . 12 9 . 9 15 Max in Single Turn 3 | . . . . 1 1 1 . 3 1 1 1 . 1 . 1 . 2 1 . 1 2 Garrison Relay 20 | . . . . . 4 . 1 . . . 3 . 2 . 4 . . 6 . . . Phase Generator 2 | . . . . . . . . . . . 1 . . . 1 . . . . . . Machines Repaired . | . . . . . . . . . . . . . . . . . . . . . . Machines Dismantled 4 | . . . . . 1 . . . . . 1 . . . 1 . . 1 . . . Machines Sabotaged . | . . . . . . . . . . . . . . . . . . . . . . Overloaded Fab Kills . | . . . . . . . . . . . . . . . . . . . . . . Hacking | -11 -10 -10 -9 -8 -8 -7 -7 -7 -7 -6 -6 -5 -5 -4 -4 -3 -3 -3 -2 -2 -2 --------- Run | Yrd Mat Min Mat Mat Gar Fac Gar Fac Gar Fac Gar Fac Gar Fac Gar Res Tes Gar Res Qua Sec Machines Accessed 89 | . 5 . 10 9 4 5 2 5 1 2 4 3 . 2 3 1 13 1 4 10 5 Terminals 69 | . 4 . 9 7 4 2 2 4 1 1 4 1 . 1 3 1 8 1 3 8 5 Fabricators 3 | . . . . . . 1 . . . . . 1 . . . . 1 . . . . Repair Stations 7 | . 1 . 1 1 . 1 . . . . . . . . . . 1 . 1 1 . Recycling Units . | . . . . . . . . . . . . . . . . . . . . . . Scanalyzers 3 | . . . . . . . . . . . . . . . . . 2 . . 1 . Garrison Access 7 | . . . . 1 . 1 . 1 . 1 . 1 . 1 . . 1 . . . . Total Hacks 210 | . 12 . 34 23 5 11 2 10 3 4 6 9 . 4 4 1 29 2 14 24 13 Successful 105 | . 6 . 14 13 3 7 2 3 1 2 2 7 . 3 1 . 14 1 6 15 5 Failed 103 | . 6 . 19 9 2 4 . 7 2 2 4 2 . 1 3 1 15 1 8 9 8 Catastrophic 17 | . 1 . 1 1 . . . 1 . . 1 1 . . 2 . 4 . 2 2 1 Database Lockouts 2 | . . . 1 1 . . . . . . . . . . . . . . . . . Manual 59 | . 8 . 11 10 . 2 . 9 . . . . . 2 . . 10 . 6 . 1 Terminals 167 | . 10 . 30 18 5 4 2 9 3 3 6 2 . 3 4 1 19 2 12 21 13 Fabricators 14 | . . . . . . 4 . . . . . 6 . . . . 4 . . . . Repair Stations 17 | . 2 . 4 3 . 2 . . . . . . . . . . 2 . 2 2 . Recycling Units . | . . . . . . . . . . . . . . . . . . . . . . Scanalyzers 4 | . . . . . . . . . . . . . . . . . 3 . . 1 . Garrison Access 8 | . . . . 2 . 1 . 1 . 1 . 1 . 1 . . 1 . . . . Terminal Hacks 63 | . 4 . 11 8 3 1 2 1 1 1 2 . . 1 1 . 6 1 3 12 5 Record 8 | . . . . . . . . . . . . . . . . . . . 1 5 2 Part Schematic 1 | . 1 . . . . . . . . . . . . . . . . . . . . Robot Schematic 1 | . . . . 1 . . . . . . . . . . . . . . . . . Robot Analysis 5 | . 1 . 1 1 . . . 1 . . . . . . . . 1 . . . . Prototype ID Bank 5 | . . . 4 1 . . . . . . . . . . . . . . . . . Open Door 3 | . . . . . . . 1 . . . . . . . 1 . . . . . 1 Level Access Points 1 | . . . . . . . . . . . . . . . . . . . . 1 . Branch Access Points 3 | . . . . . . . . . . . . . . . . . 1 . 1 1 . Emergency Access Points 6 | . . . . 1 1 . 1 . 1 . 1 . . 1 . . . . . . . Terminal Index 4 | . . . 1 1 . . . . . . . . . . . . 1 . . 1 . Repair Station Index 1 | . . . . 1 . . . . . . . . . . . . . . . . . Unreport Threat 7 | . . . 2 2 . . . . . . . . . . . . 1 . 1 1 . Locate Traps 6 | . . . 2 . . 1 . . . 1 . . . . . . 1 . . 1 . Hauler Manifests 3 | . 2 . 1 . . . . . . . . . . . . . . . . . . Zone Layout 4 | . . . . . . . . . . . . . . . . . . . . 2 2 Garrison Registry 2 | . . . . . 1 . . . . . . . . . . . . 1 . . . Patrol Navigation 2 | . . . . . 1 . . . . . 1 . . . . . . . . . . Protovariant Controls 1 | . . . . . . . . . . . . . . . . . 1 . . . . Fabricator Hacks 11 | . . . . . . 4 . . . . . 6 . . . . 1 . . . . Network Status 1 | . . . . . . . . . . . . . . . . . 1 . . . . Load Schematic 5 | . . . . . . 2 . . . . . 3 . . . . . . . . . Build 5 | . . . . . . 2 . . . . . 3 . . . . . . . . . Repair Station Hacks 14 | . 2 . 2 3 . 1 . . . . . . . . . . 2 . 2 2 . Scan Component 8 | . 1 . 1 2 . 1 . . . . . . . . . . 1 . 1 1 . Repair 6 | . 1 . 1 1 . . . . . . . . . . . . 1 . 1 1 . Recycling Unit Hacks . | . . . . . . . . . . . . . . . . . . . . . . Scanalyzer 3 | . . . . . . . . . . . . . . . . . 2 . . 1 . Insert Component 3 | . . . . . . . . . . . . . . . . . 2 . . 1 . Garrison Access Hacks 7 | . . . . 1 . 1 . 1 . 1 . 1 . 1 . . 1 . . . . Unlock Access 7 | . . . . 1 . 1 . 1 . 1 . 1 . 1 . . 1 . . . . Unauthorized Hacks 7 | . . . 1 1 . . . 1 . . . . . 1 . . 2 . 1 . . Terminals 6 | . . . 1 1 . . . 1 . . . . . 1 . . 1 . 1 . . Botnet 6 | . . . 1 1 . . . 1 . . . . . 1 . . 1 . 1 . . Fabricators 1 | . . . . . . . . . . . . . . . . . 1 . . . . Fabnet 1 | . . . . . . . . . . . . . . . . . 1 . . . . Repair Stations . | . . . . . . . . . . . . . . . . . . . . . . Recycling Units . | . . . . . . . . . . . . . . . . . . . . . . Scanalyzers . | . . . . . . . . . . . . . . . . . . . . . . Garrison Access . | . . . . . . . . . . . . . . . . . . . . . . Data Cores Recovered 6 | . . . 2 . . . . 2 . . . . . 1 . . . . . . 1 Used 3 | . . . . . . . . 1 . . . . . 1 . . . . . . 1 Hacking Detections 73 | . 5 . 10 8 3 4 . 3 1 1 4 1 . 1 3 1 13 . 4 7 4 Full Trace Events 4 | . 1 . 1 1 . . . . . . . . . . . . . . . . 1 Feedback Events . | . . . . . . . . . . . . . . . . . . . . . . Feedback Blocked . | . . . . . . . . . . . . . . . . . . . . . . Robot Schematics Acquired 4 | . . . . 1 . . . . . . . . . . . . . . . . 3 Robots Built 4 | . . . . . . 1 . . . . . 3 . . . . . . . . . Authchips 4 | . . . . . . 1 . . . . . 3 . . . . . . . . . Time 160 | . . . . . . 40 . . . . . 120 . . . . . . . . . Total Robot Build Rating 4 | . . . . . . 1 . . . . . 3 . . . . . . . . . Part Schematics Acquired 3 | . 1 . . . . . . . . . . . . . . . . . . . 2 Parts Built 1 | . . . . . . 1 . . . . . . . . . . . . . . . Authchips 1 | . . . . . . 1 . . . . . . . . . . . . . . . Time 25 | . . . . . . 25 . . . . . . . . . . . . . . . Total Part Build Rating 1 | . . . . . . 1 . . . . . . . . . . . . . . . Parts Repaired 6 | . 1 . 1 1 . . . . . . . . . . . . 1 . 1 1 . Time 283 | . 26 . 26 51 . . . . . . . . . . . . 18 . 54 108 . Parts Recycled . | . . . . . . . . . . . . . . . . . . . . . . Recycled Matter . | . . . . . . . . . . . . . . . . . . . . . . Retrieved Matter . | . . . . . . . . . . . . . . . . . . . . . . Retrieved Components . | . . . . . . . . . . . . . . . . . . . . . . Parts Scanalyzed . | . . . . . . . . . . . . . . . . . . . . . . Part Schematics Acquired . | . . . . . . . . . . . . . . . . . . . . . . Parts Damaged . | . . . . . . . . . . . . . . . . . . . . . . Bothacking | -11 -10 -10 -9 -8 -8 -7 -7 -7 -7 -6 -6 -5 -5 -4 -4 -3 -3 -3 -2 -2 -2 ------------ Run | Yrd Mat Min Mat Mat Gar Fac Gar Fac Gar Fac Gar Fac Gar Fac Gar Res Tes Gar Res Qua Sec Used RIF Installer 7 | . . . . . 1 . 1 . 1 . 1 . 1 . 1 . . 1 . . . Threat Obfuscator 2 | . . . . . . . . . . . . . 1 . 1 . . . . . . Signal Jammer 1 | . . . . . . . . . . . 1 . . . . . . . . . . Zone Cloak 1 | . . . . . . . . . 1 . . . . . . . . . . . . Structural Interface 1 | . . . . . . . . . . . . . . . . . . 1 . . . Program Shield 1 | . . . . . . . 1 . . . . . . . . . . . . . . Robots Hacked 95 | . . . . . . . . . . 7 6 4 12 5 4 5 23 6 3 9 11 Non-combat 35 | . . . . . . . . . . 3 . 2 . 4 . 4 13 . 3 4 2 Combat 60 | . . . . . . . . . . 4 6 2 12 1 4 1 10 6 . 5 9 Robot Hacks Applied 132 | . . . . . . . . . . 8 6 6 15 9 4 12 42 6 4 11 9 parse_system 8 | . . . . . . . . . . 2 . . 2 . . . 1 1 . 1 1 no_distress 28 | . . . . . . . . . . . . 1 . 2 . 3 15 . 3 2 2 generate_echo 3 | . . . . . . . . . . . . 1 . . . 2 . . . . . start_evac 1 | . . . . . . . . . . . . . . . . 1 . . . . . find_chute 1 | . . . . . . . . . . 1 . . . . . . . . . . . ignore_repairs 12 | . . . . . . . . . . . . . . 2 . 1 6 . . 1 2 map_walls 5 | . . . . . . . . . . . . . . 1 . 2 1 . . 1 . find_fabricator 1 | . . . . . . . . . . . . . . . . . 1 . . . . drop_inventory 2 | . . . . . . . . . . . . . . . . . 2 . . . . recall_reinforcements 3 | . . . . . . . . . . . . 1 . . . . 2 . . . . find_recycling 1 | . . . . . . . . . . . . . . . . 1 . . . . . ignore_parts 2 | . . . . . . . . . . . . . . . . 1 1 . . . . purge_threat 1 | . . . . . . . . . . . . . . 1 . . . . . . . locate_traps 1 | . . . . . . . . . . . . . . . . . 1 . . . . block_reporting 2 | . . . . . . . . . . . . . . 1 . . 1 . . . . clear_recycling 1 | . . . . . . . . . . . . . . . . . . . . 1 . find_scanalyzer 1 | . . . . . . . . . . . . . . . . . . . . . 1 disable_scanner 5 | . . . . . . . . . . . . . . . . . 5 . . . . find_garrison 2 | . . . . . . . . . . 1 . 1 . . . . . . . . . scatter_targeting 2 | . . . . . . . . . . . . . . . . . . . . 2 . overload_power 1 | . . . . . . . . . . 1 . . . . . . . . . . . amplify_resonance 10 | . . . . . . . . . . . 3 . 2 . 3 . 2 . . . . disable_weapons 3 | . . . . . . . . . . . . . 1 . . . . 2 . . . reboot_system 3 | . . . . . . . . . . . 1 . . . . . 1 . . 1 . go_dormant 1 | . . . . . . . . . . . 1 . . . . . . . . . . overwrite_iff 12 | . . . . . . . . . . 2 . 1 7 . 1 . 1 . . . . formatsys_low 2 | . . . . . . . . . . . . . . 1 . . . . . 1 . formatsys_high 18 | . . . . . . . . . . 1 1 1 3 1 . 1 2 3 1 1 3 Relay Couplers Released 78 | . . . . . 16 . 5 . . . 10 . 9 . 15 . . 23 . . . Machine Destruction 78 | . . . . . 16 . 5 . . . 10 . 9 . 15 . . 23 . . . Attached 29 | . . . . . . . . . . 1 4 2 5 1 2 2 2 6 1 . 3 Fabnet Peak Effective % 3 | . . . . . . . . . . . . . . . . . . . 3 3 3 Autooverrided 6 | . . . . . . . . . . . . . . . . . . . . 1 5 Robots Rewired 10 | . . . . . 3 . 4 . . 1 . . 2 . . . . . . . . Allies Hacked 3 | . . . . . . . . . . . . . 1 . 1 . . . . 1 . Hacks Repelled . | . . . . . . . . . . . . . . . . . . . . . . Allies | -11 -10 -10 -9 -8 -8 -7 -7 -7 -7 -6 -6 -5 -5 -4 -4 -3 -3 -3 -2 -2 -2 -------- Run | Yrd Mat Min Mat Mat Gar Fac Gar Fac Gar Fac Gar Fac Gar Fac Gar Res Tes Gar Res Qua Sec Total Allies 56 | . . . . . 3 1 6 . . 4 1 5 11 2 2 1 3 5 1 3 8 Largest Group 5 | . . . . . 2 1 5 . . 2 1 4 4 4 1 2 3 4 1 1 2 Highest-Rated Group 242 | . . . . . 51 14 114 . . 76 40 98 162 121 49 110 155 225 45 69 242 Highest-Rated Ally 178 | . . . . . 31 14 31 . . 47 40 41 148 49 49 64 64 64 45 69 178 Total Orders 6 | . . . . . . 1 . . . . . 2 3 . . . . . . . . AID 6 | . . . . . . 1 . . . . . 2 3 . . . . . . . . Ally Attacks 297 | . . . . . 4 . 34 . . 11 9 17 64 1 34 8 12 56 . 5 42 Total Damage 7826 | . . . . . 49 . 763 . . 146 113 316 1630 24 484 188 362 1702 . 105 1944 Kills 46 | . . . . . . . 8 . . . 1 5 7 1 4 1 1 9 . . 9 Allies Corrupted 2 | . . . . . . . . . . . . . . . 1 . 1 . . . . Allies Melted 4 | . . . . . 1 . 2 . . . . . 1 . . . . . . . . Intel | -11 -10 -10 -9 -8 -8 -7 -7 -7 -7 -6 -6 -5 -5 -4 -4 -3 -3 -3 -2 -2 -2 ------- Run | Yrd Mat Min Mat Mat Gar Fac Gar Fac Gar Fac Gar Fac Gar Fac Gar Res Tes Gar Res Qua Sec Robot Analysis Total 5 | . 1 . 1 1 . . . 1 . . . . . . . . 1 . . . . Derelict Logs Recovered 1 | . . 1 . . . . . . . . . . . . . . . . . . . Drone Launches . | . . . . . . . . . . . . . . . . . . . . . . Drone Recoveries . | . . . . . . . . . . . . . . . . . . . . . . Exploration | -11 -10 -10 -9 -8 -8 -7 -7 -7 -7 -6 -6 -5 -5 -4 -4 -3 -3 -3 -2 -2 -2 ------------- Run | Yrd Mat Min Mat Mat Gar Fac Gar Fac Gar Fac Gar Fac Gar Fac Gar Res Tes Gar Res Qua Sec Turns Passed 25751 | 144 1538 154 1259 1309 1908 913 1666 692 1354 410 2176 648 2412 369 1260 391 2451 1000 278 2471 948 Spaces Moved 10583 | 63 537 58 546 676 950 377 554 273 469 121 742 187 812 192 573 192 1204 421 150 1119 367 Core 4 | 4 . . . . . . . . . . . . . . . . . . . . . Treads 9261 | 59 537 58 546 132 177 377 554 273 469 121 742 187 812 192 573 192 1204 421 150 1118 367 Legs . | . . . . . . . . . . . . . . . . . . . . . . Wheels 1318 | . . . . 544 773 . . . . . . . . . . . . . . 1 . Hover . | . . . . . . . . . . . . . . . . . . . . . . Flight . | . . . . . . . . . . . . . . . . . . . . . . Fastest Speed 50 | 50 160 240 160 130 130 162 240 240 240 240 242 249 170 166 160 160 152 152 155 155 160 Average Speed 188 | 155 228 240 160 151 145 177 241 240 240 241 254 249 248 166 161 160 159 154 155 162 160 Slowest Speed 400 | 160 240 240 240 240 400 242 243 240 240 242 270 249 360 166 166 160 235 160 155 310 246 Overloaded Moves . | . . . . . . . . . . . . . . . . . . . . . . Propulsion Burnouts . | . . . . . . . . . . . . . . . . . . . . . . Robots Hopped . | . . . . . . . . . . . . . . . . . . . . . . Cave-ins Triggered 1 | . . . . . . . . . . . . . . 1 . . . . . . . Teleports 2 | . . . . . . . . . . . . . . . . . . . . 1 1 Exploration Rate (%) 44 | 4 93 22 63 44 86 14 54 10 75 5 66 6 64 5 80 5 94 56 5 97 20 Regions Visited 21 Branch Regions 4 Pre-discovered Areas . | . . . . . . . . . . . . . . . . . . . . . . Known Exits Taken 8 | . . . . 1 . 1 . 1 . 1 . 1 . 1 . . 1 . 1 . . Unknown Exits Taken 6 | 1 1 1 1 . . . . . . . . . . . . 1 . . . 1 . Scrap Searched . | . . . . . . . . . . . . . . . . . . . . . . Spaces Dug 56 | . . . . . 1 . . . . 2 . . . 9 . 1 6 3 . 9 25 Terrain Destroyed 450 | . . . . 2 3 6 6 40 18 11 21 . 1 9 3 4 26 32 8 83 177 Melee . | . . . . . . . . . . . . . . . . . . . . . . Projectile 236 | . . . . . 2 3 6 4 18 11 15 . 1 9 3 4 23 27 8 76 26 AOE 202 | . . . . 2 1 3 . 36 . . 6 . . . . . . 3 . . 151 Terrain Rammed . | . . . . . . . . . . . . . . . . . . . . . . Walls Destroyed . | . . . . . . . . . . . . . . . . . . . . . . Machines Disabled . | . . . . . . . . . . . . . . . . . . . . . . Actions | -11 -10 -10 -9 -8 -8 -7 -7 -7 -7 -6 -6 -5 -5 -4 -4 -3 -3 -3 -2 -2 -2 --------- Run | Yrd Mat Min Mat Mat Gar Fac Gar Fac Gar Fac Gar Fac Gar Fac Gar Res Tes Gar Res Qua Sec Total 14089 | 87 702 63 773 843 1292 526 734 292 586 191 908 343 1046 225 747 260 1592 615 186 1506 572 Wait 790 | . 42 . 59 56 70 74 18 . 5 18 23 111 25 2 11 29 45 34 18 106 44 Move 10566 | 62 536 57 545 675 949 377 553 273 468 121 741 187 811 190 572 191 1204 420 149 1118 367 Hop . | . . . . . . . . . . . . . . . . . . . . . . Pick Up 256 | 6 24 . 31 10 13 9 17 . 16 3 11 3 20 2 14 2 33 15 3 16 8 Fast Attach 203 | 8 2 . 11 11 22 2 6 6 6 3 7 5 13 . 12 3 36 7 . 32 11 Attach 119 | . 5 . 4 2 6 4 15 . 6 4 7 5 1 4 4 2 18 4 3 10 15 Detach 23 | 1 . . . . . 1 1 . . . 1 1 . . 2 . 11 . . 1 4 Swap 238 | 1 3 . 10 8 10 5 2 . 5 8 18 9 22 2 21 5 38 25 3 32 11 Drop 350 | . 12 . 27 24 25 4 9 6 13 3 10 6 37 1 25 4 65 21 1 44 13 Fire 1240 | 9 76 4 82 56 75 49 74 7 53 28 63 16 87 23 77 20 133 81 9 145 73 Melee 50 | . . . . . 5 . . . . . . . 21 . . . . . . . 24 Ram . | . . . . . . . . . . . . . . . . . . . . . . Kick . | . . . . . . . . . . . . . . . . . . . . . . Crush 31 | . 2 2 4 1 . 1 . . . 3 . . 1 . . 4 9 . . 2 2 Escape Stasis 138 | . . . . . 81 . 16 . 14 . 18 . 8 1 . . . . . . . Rewire 51 | . . . . . 28 . 23 . . . . . . . . . . . . . . Trap . | . . . . . . . . . . . . . . . . . . . . . . Miscellaneous 34 | . . . . . 8 . . . . . 9 . . . 9 . . 8 . . . Route ------- -11/Scrapyard -10/Materials (discovered 5 exits: *Mat x3 / [*Min x2]) -10/Mines -9/Materials (discovered 3 exits: *Mat x2 / [*Min]) -8/Materials (discovered 2 exits: *Fac / Gar) -8/Garrison (discovered 3 exits: *Fac x3) -7/Factory -7/Garrison (discovered 2 exits: *Fac x2) -7/Factory -7/Garrison (discovered 2 exits: *Fac x2) -6/Factory -6/Garrison (discovered 2 exits: *Fac x2) -5/Factory -5/Garrison (discovered 2 exits: *Fac x2) -4/Factory -4/Garrison (discovered 3 exits: *Res x3) -3/Research (discovered 2 exits: *Res / *Tes) -3/Testing (discovered 2 exits: *Res / Gar) -3/Garrison (discovered 3 exits: *Res x3) -2/Research (discovered 2 exits: *Qua x2) -2/Quarantine (discovered 2 exits: *Acc / *Sec) -2/Section 7 History --------- Turn | Location | Event 14 | -11/Scrapyard | Discovered new exit (range 15) 145 | -11/Scrapyard | Entered Materials 303 | -10/Materials | Build established: Mutant 317 | -10/Materials | Discovered new exit (range 6) 653 | -10/Materials | Discovered new exit (range 16) 914 | -10/Materials | Core integrity fell below 50% 924 | -10/Materials | Discovered new exit (range 14) 1231 | -10/Materials | Discovered new exit (range 15) 1404 | -10/Materials | Repaired Lgt. Treads 1413 | -10/Materials | Discovered new exit (range 15) 1683 | -10/Materials | Entered Mines 1770 | -10/Mines | Learned 2 Materials zone layouts 1827 | -10/Mines | Discovered new exit (range 5) 1837 | -10/Mines | Entered Materials 1837 | -9/Materials | Evolved 2 slots: Propulsion x1, Utility x1 2222 | -9/Materials | Central database locked down 2282 | -9/Materials | Discovered new exit (range 7) 2394 | -9/Materials | Repaired Hcp. Storage Unit 2663 | -9/Materials | Discovered new exit (range 7) 3024 | -9/Materials | Discovered new exit (range 5) 3096 | -9/Materials | Entered another Materials area 3096 | -8/Materials | Evolved 2 slots: Utility x1, Weapon x1 3108 | -8/Materials | Identified exit to Garrison 3384 | -8/Materials | Build established: Tank 3916 | -8/Materials | Garrison activated, responded to threat 4019 | -8/Materials | Central database locked down 4073 | -8/Materials | Discovered new exit (range 16) 4301 | -8/Materials | Repaired Imp. Assault Rifle 4328 | -8/Materials | Destroyed 7 combat bots 4405 | -8/Materials | Entered Garrison 4441 | -8/Garrison | Triggered checkpoint 4477 | -8/Garrison | Garrison Relay disabled 4683 | -8/Garrison | Triggered checkpoint 4684 | -8/Garrison | Lost 4 parts (1p2u1w) 4753 | -8/Garrison | Discovered new exit (range 9) 4805 | -8/Garrison | Triggered checkpoint 4862 | -8/Garrison | Garrison Relay disabled 4941 | -8/Garrison | Triggered checkpoint 5026 | -8/Garrison | Discovered new exit (range 14) 5283 | -8/Garrison | Triggered checkpoint 5318 | -8/Garrison | Garrison Relay disabled 5353 | -8/Garrison | Garrison Relay disabled 5377 | -8/Garrison | Installed Relay Interface Framework 5441 | -8/Garrison | Discovered new exit (range 12) 5543 | -8/Garrison | Triggered checkpoint 5619 | -8/Garrison | Triggered checkpoint 5656 | -8/Garrison | Discovered new exit (range 50) 5656 | -8/Garrison | Discovered new exit (range 12) 5656 | -8/Garrison | Discovered new exit (range 56) 5867 | -8/Garrison | Spotted B-75 Beast 5912 | -8/Garrison | Destroyed B-75 Beast 5976 | -8/Garrison | System corruption reached 10% 5987 | -8/Garrison | System corruption reached 30% 6313 | -8/Garrison | Entered Factory 6313 | -7/Factory | Evolved 2 slots: Propulsion x1, Utility x1 6396 | -7/Factory | Build established: Scavenger-Tank 6923 | -7/Factory | Fabricated Huge Storage Unit (x1) 6965 | -7/Factory | Fabricated M-13 Machinist (x1) 7113 | -7/Factory | First assault squad dispatched 7226 | -7/Factory | Identified exit to Garrison 7226 | -7/Factory | Entered Garrison 7266 | -7/Garrison | Triggered checkpoint 7318 | -7/Garrison | Triggered checkpoint 7511 | -7/Garrison | Triggered checkpoint 7594 | -7/Garrison | Rescued a captive Derelict 7604 | -7/Garrison | Rescued a captive Derelict 7810 | -7/Garrison | Lost 4 allies 8018 | -7/Garrison | Triggered checkpoint 8103 | -7/Garrison | Spotted B-75 Beast 8181 | -7/Garrison | Destroyed B-75 Beast 8210 | -7/Garrison | Lost 8 parts (1p3n1u3w) 8256 | -7/Garrison | Triggered checkpoint 8271 | -7/Garrison | Discovered new exit (range 15) 8522 | -7/Garrison | Triggered checkpoint 8615 | -7/Garrison | Discovered new exit (range 13) 8644 | -7/Garrison | Triggered checkpoint 8777 | -7/Garrison | Expanded RIF knowledge: Program Shield 8892 | -7/Garrison | Entered Factory 9584 | -7/Factory | Identified exit to Garrison 9584 | -7/Factory | Entered Garrison 9714 | -7/Garrison | Triggered checkpoint 9910 | -7/Garrison | Triggered checkpoint 9929 | -7/Garrison | Triggered checkpoint 10031 | -7/Garrison | Destroyed 12 combat bots 10038 | -7/Garrison | Lost 6 parts (1p2n3u) 10082 | -7/Garrison | Triggered checkpoint 10276 | -7/Garrison | Triggered checkpoint 10404 | -7/Garrison | Expanded RIF knowledge: Zone Cloak 10505 | -7/Garrison | Discovered new exit (range 11) 10661 | -7/Garrison | Core integrity fell below 50% 10890 | -7/Garrison | Discovered new exit (range 8) 10938 | -7/Garrison | Entered Factory 10938 | -6/Factory | Evolved 2 slots: Power x1, Utility x1 10979 | -6/Factory | Build established: Bothacker-Tank 11348 | -6/Factory | Identified exit to Garrison 11348 | -6/Factory | Entered Garrison 11348 | -6/Garrison | Accompanied by 1 ally 11456 | -6/Garrison | Triggered checkpoint 11530 | -6/Garrison | Garrison Relay disabled 11552 | -6/Garrison | Triggered checkpoint 11654 | -6/Garrison | Triggered checkpoint 11964 | -6/Garrison | Triggered checkpoint 12059 | -6/Garrison | Discovered new exit (range 12) 12116 | -6/Garrison | Lost 3 parts (1n1u1w) 12302 | -6/Garrison | Phase Generator disabled 12502 | -6/Garrison | Triggered checkpoint 12759 | -6/Garrison | Discovered new exit (range 10) 12847 | -6/Garrison | Expanded RIF knowledge: Signal Jamming 12928 | -6/Garrison | Triggered checkpoint 13028 | -6/Garrison | Garrison Relay disabled 13142 | -6/Garrison | Triggered checkpoint 13166 | -6/Garrison | Triggered checkpoint 13463 | -6/Garrison | Garrison Relay disabled 13524 | -6/Garrison | Entered Factory 13524 | -5/Factory | Accompanied by 1 ally 13524 | -5/Factory | Evolved 2 slots: Utility x2 13760 | -5/Factory | Build established: Botlord-Tank 13952 | -5/Factory | Fabricated M-13 Machinist (x1) 13993 | -5/Factory | Fabricated M-13 Machinist (x1) 14033 | -5/Factory | Fabricated M-13 Machinist (x1) 14172 | -5/Factory | Identified exit to Garrison 14172 | -5/Factory | Entered Garrison 14172 | -5/Garrison | Accompanied by 3 allies 14232 | -5/Garrison | Expanded RIF knowledge: Threat Obfuscation 14356 | -5/Garrison | Triggered checkpoint 14397 | -5/Garrison | Garrison Relay disabled 14730 | -5/Garrison | Triggered checkpoint 14818 | -5/Garrison | Triggered checkpoint 15246 | -5/Garrison | Build established: Botlord-Mutant 15395 | -5/Garrison | Discovered new exit (range 10) 15448 | -5/Garrison | Rewired B-90 Cyclops 15493 | -5/Garrison | Spotted B-90 Cyclops 15497 | -5/Garrison | Spotted B-90 Cyclops 15498 | -5/Garrison | Rewired B-75 Beast 15519 | -5/Garrison | Destroyed B-90 Cyclops 15533 | -5/Garrison | Destroyed B-90 Cyclops 15833 | -5/Garrison | Build established: Bothacker-Tank 16194 | -5/Garrison | Triggered checkpoint 16303 | -5/Garrison | Garrison Relay disabled 16324 | -5/Garrison | Triggered checkpoint 16550 | -5/Garrison | Discovered new exit (range 13) 16584 | -5/Garrison | Entered Factory 16584 | -4/Factory | Accompanied by 2 allies 16584 | -4/Factory | Evolved 2 slots: Propulsion x2 16768 | -4/Factory | Crushed by falling debris 16796 | -4/Factory | Identified exit to Garrison 16953 | -4/Factory | Entered Garrison 16953 | -4/Garrison | Accompanied by 1 ally 17057 | -4/Garrison | Triggered checkpoint 17107 | -4/Garrison | Garrison Relay disabled 17194 | -4/Garrison | Spotted B-86 Titan 17212 | -4/Garrison | Triggered checkpoint 17279 | -4/Garrison | Destroyed B-86 Titan 17306 | -4/Garrison | System corruption reached 10% 17331 | -4/Garrison | Triggered checkpoint 17331 | -4/Garrison | Triggered checkpoint 17397 | -4/Garrison | Triggered checkpoint 17545 | -4/Garrison | Phase Generator disabled 17625 | -4/Garrison | Rescued a captive Derelict 17679 | -4/Garrison | Discovered new exit (range 10) 17729 | -4/Garrison | Triggered checkpoint 17738 | -4/Garrison | Garrison Relay disabled 17766 | -4/Garrison | Expanded RIF knowledge: Threat Obfuscation 17947 | -4/Garrison | Triggered checkpoint 17961 | -4/Garrison | Garrison Relay disabled 18009 | -4/Garrison | Discovered new exit (range 12) 18046 | -4/Garrison | Build established: Botlord-Tank 18129 | -4/Garrison | Triggered checkpoint 18153 | -4/Garrison | Garrison Relay disabled 18199 | -4/Garrison | Discovered new exit (range 10) 18213 | -4/Garrison | Entered Research 18213 | -3/Research | Accompanied by 1 ally 18213 | -3/Research | Evolved 2 slots: Utility x2 18301 | -3/Research | Discovered new exit (range 14) 18400 | -3/Research | Discovered new exit (range 12) 18604 | -3/Research | Entered Testing 18604 | -3/Testing | Accompanied by 2 allies 18647 | -3/Testing | Found Prototype Energy Cannon 18649 | -3/Testing | Identified Disintegrator 19033 | -3/Testing | Spotted Striker 19033 | -3/Testing | Spotted Striker 19058 | -3/Testing | Destroyed Striker 19062 | -3/Testing | Destroyed Striker 19064 | -3/Testing | Spotted Alpha 7 19103 | -3/Testing | Destroyed Alpha 7 19246 | -3/Testing | Found Prototype Processor 19246 | -3/Testing | Identified Spectral Analyzer 19329 | -3/Testing | Build established: Bothacker-Tank 19398 | -3/Testing | Found Prototype Hackware 19430 | -3/Testing | Found Portable AFG 19473 | -3/Testing | Found Prototype Ballistic Gun 19474 | -3/Testing | Identified Hyp. Multirail 19513 | -3/Testing | Found Prototype Hackware 19541 | -3/Testing | Found Fusion Bomb Launcher 19869 | -3/Testing | Identified Ghost Barrier 19870 | -3/Testing | Identified System Mapper 19932 | -3/Testing | System corruption reached 10% 20111 | -3/Testing | Found Prototype Energy Gun 20111 | -3/Testing | Identified Tachyon Dispersion Ray 20365 | -3/Testing | Discovered new exit (range 11) 20369 | -3/Testing | Build established: Hacker-Tank 20385 | -3/Testing | Found Prototype Device 20385 | -3/Testing | Identified Exp. Hardlight Generator 20415 | -3/Testing | Found Prototype Energy Cannon 20415 | -3/Testing | Identified Imp. Potential Cannon 20418 | -3/Testing | Found Imp. Potential Cannon 20589 | -3/Testing | Found Prototype Launcher 20589 | -3/Testing | Identified Z-bomb Delivery System 20725 | -3/Testing | Repaired Hvy. Treads 20801 | -3/Testing | Spotted PL-0AWQ2OW8N9 21055 | -3/Testing | Identified exit to Garrison 21055 | -3/Testing | Entered Garrison 21084 | -3/Garrison | Expanded RIF knowledge: Structural Interface 21412 | -3/Garrison | Triggered checkpoint 21412 | -3/Garrison | Triggered checkpoint 21467 | -3/Garrison | Discovered new exit (range 70) 21467 | -3/Garrison | Discovered new exit (range 76) 21467 | -3/Garrison | Discovered new exit (range 60) 21478 | -3/Garrison | Garrison Relay disabled 21551 | -3/Garrison | Rescued a captive Derelict 21560 | -3/Garrison | Rescued a captive Derelict 21631 | -3/Garrison | Triggered checkpoint 21632 | -3/Garrison | Triggered checkpoint 21695 | -3/Garrison | Triggered checkpoint 21757 | -3/Garrison | Triggered checkpoint 21870 | -3/Garrison | Build established: Bothacker-Tank 21948 | -3/Garrison | Garrison Relay disabled 21950 | -3/Garrison | Garrison Relay disabled 21956 | -3/Garrison | Garrison Relay disabled 21958 | -3/Garrison | Garrison Relay disabled 22055 | -3/Garrison | Entered Research 22055 | -2/Research | Evolved 2 slots: Power x1, Utility x1 22236 | -2/Research | Repaired Exp. Power Amplifier 22257 | -2/Research | Build established: Botlord-Tank 22292 | -2/Research | Discovered new exit (range 16) 22304 | -2/Research | Identified exit to Quarantine 22333 | -2/Research | Entered Quarantine 22422 | -2/Quarantine | Found Alien Artifact 22422 | -2/Quarantine | Identified Phase Armor 22747 | -2/Quarantine | Identified exit to Access 22756 | -2/Quarantine | Cryocooling Duct disabled 22771 | -2/Quarantine | Ambient heat levels rising (+20) 22771 | -2/Quarantine | Non-combat units ordered to evacuate 23259 | -2/Quarantine | Repaired Centrium Heavy Treads 23337 | -2/Quarantine | Found Alien Artifact 23390 | -2/Quarantine | Identified Subatomic Replicator 23390 | -2/Quarantine | Used Subatomic Replicator to replicate Antimissile System 23489 | -2/Quarantine | Found Alien Slashing Weapon 23494 | -2/Quarantine | Identified Sigix Broadsword 23543 | -2/Quarantine | Found Alien Artifact 23543 | -2/Quarantine | Identified Transdimensional Reconstructor 23543 | -2/Quarantine | Warped through subspace 23603 | -2/Quarantine | Found Alien Artifact 23787 | -2/Quarantine | Build established: Bothacker-Tank 23793 | -2/Quarantine | Found Alien Artifact 23793 | -2/Quarantine | Identified Phase Redirector 23954 | -2/Quarantine | Found Prototype Device 23954 | -2/Quarantine | Identified Exp. Shock Absorption System 24004 | -2/Quarantine | Found Prototype Launcher 24004 | -2/Quarantine | Identified Ragnarok Missile Launcher 24195 | -2/Quarantine | Identified Hpw. Transdimensional Reconstructor 24331 | -2/Quarantine | System corruption reached 10% 24369 | -2/Quarantine | Local machine network offline 24518 | -2/Quarantine | Spotted Fortress 24546 | -2/Quarantine | Core integrity fell below 50% 24603 | -2/Quarantine | Destroyed Fortress 24796 | -2/Quarantine | Discovered new exit (range 6) 24804 | -2/Quarantine | Entered Section 7 24868 | -2/Section 7 | Found Prototype Processor 24868 | -2/Section 7 | Identified Exp. Melee Analysis Suite 25185 | -2/Section 7 | Found Alien Artifact 25185 | -2/Section 7 | Identified Microwarp Drive 25286 | -2/Section 7 | Found Alien Artifact 25286 | -2/Section 7 | Identified Core Reset Matrix 25286 | -2/Section 7 | Used Core Reset Matrix 25290 | -2/Section 7 | Sensed 20 artifacts in vicinity 25453 | -2/Section 7 | Spotted S7 Guard 25515 | -2/Section 7 | Core integrity fell below 20% 25543 | -2/Section 7 | Warped through subspace 25569 | -2/Section 7 | Lost 3 parts (3u) 25627 | -2/Section 7 | Scanned by Researcher 25680 | -2/Section 7 | Lost 3 parts (3w) 25691 | -2/Section 7 | Destroyed 9 combat bots 25743 | -2/Section 7 | Spotted Alpha 7 25751 | -2/Section 7 | Destroyed Alpha 7 25752 | -2/Section 7 | Destroyed by Alpha 7 with Heavy Quantum Rifle Last Messages --------------- 25745_ K-01 Serf cleans the Thrusters. 25746_ Fabnet algorithm triggers C-65 Expert IFF filter rewrite. 25746_ K-01 Serf collects debris. 25747_ Destroyed Unknown Storage. 25747_ Ragnarok Missile intercepted. 25748_ C-65 Expert calls for reinforcements. 25748_ ALERT: Hostile activity reported, dispatching reinforcements to area. 25748_ Held in stasis. 25748_ C-65 Expert is analyzing... 25748_ Construction Supplies damaged. 25749_ Activated siege mode. 25749_ K-01 Serf cleans the Thrusters. 25751_ Alpha 7 destroyed. 25751_ Destroyed Unknown Wheel. 25751_ K-01 Serf destroyed. 25751_ C-65 Expert calls for reinforcements. 25751_ ALERT: Hostile activity reported, dispatching reinforcements to area. 25751_ Held in stasis. Map ----- +----------------------------------------------------+ | ########?????????????????????????????????????????? | | # #???????????????????????????????????????? | | #"" """ #???????????????????????????????????????? | | #"" """ #???????????????????????????????????????? | | #"" """ #???????????????????????????????????????? | | #T #???????????###############?????????????? | | #"" """ #???????????#"""""""""" ?????????????? | | #"" """ !#???????????#" ????????????? | | #"" """ #???????????#" ????????????? | | # ???????????###" ????????????? | | #####+##############T# ???????????? | | ???????????? | | ??????????? | | #### ################ ??????????? | | ???# # ?????????????#" ??????????? | | #??# # ??????????????" ??????????? | | #?# + ??????????????" c" ??????????? | | "### # ??????????????" """ ????????????? | | # ??????????????" " ? ??????????? | | # ??????????????" " ??????????? | | "#######??????????????" ??????????? | | ##????????????????????" """""" ???????????? | | #?????????????????????" "??????????????????? | | ??????????????????????" """""" ????????? | | ??????????????????????" ????????? | | ??????????????????????" @ ????????? | | ??????????????????????" """""" ?????????? | | ??????????????????????" c "??????????????????? | | ??????????????????????" "??????????????????? | | ?????????????????????? ?????????????????? | | ?????????????????????#" ????????????????? | | ??????????????????????" ??????????????? | | ??????????????????????" ?????????????? | | ??????????????????????" ????????????? | | ??????????????????????" "" ???????????? | | ??????????????????????" """" ?????????????? | | ?????????????????????? "??? "????????????? | | ??????????????????????" "??????????????????? | | ?????????????????????? *=??????????????????? | | ?????????????????????? ???????????????????? | | ??????????????????????? ?????????????????????? | | ?????????????????????????????????????????????????? | | ?????????????????????????????????????????????????? | | ?????????????????????????????????????????????????? | | ?????????????????????????????????????????????????? | | ?????????????????????????????????????????????????? | | ?????????????????????????????????????????????????? | | ?????????????????????????????????????????????????? | | ?????????????????????????????????????????????????? | | ?????????????????????????????????????????????????? | +----------------------------------------------------+ Best States ------------- Heat Dissipation 163 Coolant Potential 100 Energy Generation 89 Energy Capacity 830 Matter Stores 300 Matter Capacity 300 Sight Range 16 Terrain Scan Density 10 Jamming Range 16 Power Amplification 40 Armor Coverage 900 Resistance: KI 30 Resistance: TH 25 Resistance: EM 15 Point Defense Rating 240 Phase Shifting 15 Evasion (%) 55 Targeting Accuracy 6 Melee Accuracy 12 Core Analysis 6 Recoil Reduction 6 Offensive Hacking 20 Defensive Hacking 20 Relay Coupler Types 4 Relay Coupler Value 117 Authchip Count 6 Item Schematics ----------------- None Robot Schematics ------------------ None Fabricated ------------ Huge Storage Unit | x1 | -7/Factory | Authchip M-13 Machinist | x1 | -7/Factory | Authchip M-13 Machinist | x1 | -5/Factory | Authchip M-13 Machinist | x1 | -5/Factory | Authchip M-13 Machinist | x1 | -5/Factory | Authchip Alien Tech Used ----------------- Phase Armor Subatomic Replicator Sigix Broadsword Transdimensional Reconstructor Phase Redirector Microwarp Drive Core Reset Matrix High-powered Transdimensional Reconstructor Achievements -------------- Giant Slayer Hard Hitter Max Potential Signature Confirmed Challenges ------------ None Game ------ Seed ReflectiveFlightObliterator Manual? 0 Play Time 05:10:17 Cumulative 100.0 hours Start 2024.09.06 @ 18:37:06 End 2024.09.07 @ 22:24:17 Sessions 7 Manual Loads 0 Difficulty Rogue Special Mode None Game No. 53 Rogue 53 Adventurer 0 Explorer 0 Win Type - Total 3 Types 1/0/0/2/0/0/0/0/0 Lore% 47 Gallery% 63 Achievement% 55 Wizard Run 0 Options --------- Layout 0 ASCII 0 Keyboard 0 Movement Numpad Keybinds 0 Fullscreen 1 Font 18/X11 Map View 76x50 Zoom Use 0% Tactical HUD 1 Map Filters NONE Filters NONE Steam 1 RUN: 10bd3246-0eac-437d-b2c3-c83c71c9f43e